fUSD/lending_fUSD_20260419
["ID","MTS","AMOUNT","RATE_DAILY","PERIOD"]
[420811762,1776550234374,-500.0,8.574e-05,2]
[420811763,1776550234383,-500.0,8.574e-05,2]
[420811764,1776550234392,-500.0,8.574e-05,2]
[420811765,1776550234401,-500.0,8.574e-05,2]
[420811766,1776550234411,-500.0,8.574e-05,2]
[420811767,1776550234420,-380.00843705,8.574e-05,2]
[420811768,1776550234429,-500.0,8.574e-05,2]
[420811769,1776550234438,-500.0,8.574e-05,2]
[420811770,1776550234447,-500.0,8.574e-05,2]
[420811771,1776550234457,-500.0,8.574e-05,2]
[420811772,1776550234467,-500.0,8.574e-05,2]
[420811773,1776550234476,-338.25533056,8.574e-05,2]
[420811774,1776550234486,-500.0,8.574e-05,2]
[420811775,1776550234495,-500.0,8.574e-05,2]
[420811776,1776550234504,-500.0,8.574e-05,2]
[420811777,1776550234513,-500.0,8.574e-05,2]
[420811778,1776550234523,-500.0,8.574e-05,2]
[420811779,1776550234533,-165.75619284,8.574e-05,2]
[420811780,1776550234542,-211.45653831,8.574e-05,2]
[420811781,1776550234551,-500.0,8.574e-05,2]
[420811782,1776550234561,-500.0,8.574e-05,2]
[420811783,1776550234581,-500.0,8.574e-05,2]
[420811784,1776550234591,-644.84606013,8.574e-05,2]
[420811785,1776550234600,-500.0,8.574e-05,2]
[420811786,1776550234610,-500.0,8.574e-05,2]
[420811787,1776550234619,-500.0,8.574e-05,2]
[420811788,1776550234628,-500.0,8.574e-05,2]
[420811789,1776550234638,-293.53715633,8.574e-05,2]
[420811790,1776550234648,-241.87166512,8.574e-05,2]
[420811791,1776550234657,-250.0,8.574e-05,2]
[420811792,1776550234667,-153.85445399,8.588e-05,2]
[420811793,1776550234676,-151.0,8.626e-05,2]
[420811794,1776550234685,-150.0,8.638e-05,21]
[420811795,1776550234695,-8197.9631,8.675e-05,2]
[420811796,1776550234704,-151.0,8.681e-05,2]
[420811797,1776550234713,-151.0,8.736e-05,2]
[420811798,1776550234723,-151.0,8.772e-05,2]
[420811799,1776550234732,-1093.91752428,8.774e-05,3]
[420811800,1776550234741,-1093.91752428,8.774e-05,3]
[420811801,1776550234751,-1093.91752428,8.775e-05,3]
[420811802,1776550234760,-150.0,8.775e-05,2]
[420811803,1776550234770,-4902.06504507,8.786e-05,2]
[420811804,1776550234779,-151.0,8.791e-05,2]
[420811805,1776550234788,-150.0,8.836e-05,21]
[420811806,1776550234797,-200.0,8.844e-05,2]
[420811807,1776550234806,-1428.38747117,8.844e-05,2]
[420811808,1776550234815,-181.08010149,8.844e-05,2]
[420811809,1776550234825,-151.0,8.846e-05,2]
[420811810,1776550234834,-150.36,8.846e-05,2]
[420811811,1776550234843,-500.0,8.848e-05,2]
[420811812,1776550234852,-1000.0,8.851e-05,2]
[420811813,1776550234861,-434.0,8.88e-05,5]
[420811814,1776550234871,-150.0,8.88e-05,2]
[420811815,1776550234880,-500.0,8.88e-05,2]
[420811816,1776550234889,-500.0,8.88e-05,2]
[420811817,1776550234899,-150.0,8.88e-05,2]
[420811818,1776550234909,-150.0,8.88e-05,2]
[420811819,1776550234919,-231.82129933,8.88e-05,2]
[420811820,1776550234928,-286.48877466,8.88e-05,2]
[420811821,1776550234937,-150.17997214,8.88e-05,2]
[420811822,1776550234946,-150.0,8.88e-05,2]
[420811823,1776550234955,-150.0,8.88e-05,2]
[420811824,1776550235548,-262.66144291,8.88e-05,2]
[420811825,1776550235558,-153.88637965,8.88e-05,2]
[420811826,1776550235567,-150.0,8.88e-05,2]
[420811827,1776550235577,-168.8570491,8.88e-05,2]
[420811828,1776550235586,-150.0,8.88e-05,2]
[420811829,1776550235595,-286.45920067,8.88e-05,2]
[420811830,1776550235605,-500.0,8.88e-05,2]
[420811831,1776550235614,-500.0,8.88e-05,2]
[420811832,1776550235623,-500.0,8.88e-05,2]
[420811833,1776550235632,-624.96068047,8.88e-05,2]
[420811834,1776550235641,-500.0,8.88e-05,2]
[420811835,1776550235650,-539.13798207,8.88e-05,2]
[420811836,1776550235659,-151.0,8.901e-05,2]
[420811837,1776550235668,-156.34,8.904e-05,2]
[420811838,1776550235678,-165.78,8.97e-05,2]
[420811839,1776550235687,-3617.90990963,9e-05,2]
[420811840,1776550235696,-5004.75598133,9e-05,2]
[420811841,1776550235706,-150.0,9e-05,2]
[420811842,1776550235715,-150.0,9e-05,2]
[420811843,1776550235724,-4300.0,9e-05,3]
[420811844,1776550235733,-150.0,9.037e-05,2]
[420811845,1776550235742,-587.0,9.066e-05,2]
[420811846,1776550235751,-2351.0,9.066e-05,2]
[420811847,1776550235761,-500.0,9.101e-05,2]
[420811848,1776550235770,-158.76335757,9.101e-05,2]
[420811849,1776550235779,-500.0,9.122e-05,2]
[420811850,1776550235788,-255.0,9.124e-05,2]
[420811851,1776550235797,-150.36,9.197e-05,2]
[420811852,1776550235806,-2000.0,9.2e-05,2]
[420811853,1776550235815,-1093.91752428,9.243e-05,3]
[420811854,1776550235825,-1600.0,9.244e-05,2]
[420811855,1776550235834,-2000.0,9.247e-05,2]
[420811856,1776550235844,-200.0,9.392e-05,2]
[420811857,1776550235853,-1481.23780761,9.392e-05,2]
[420811858,1776550235862,-187.78006525,9.392e-05,2]
[420811859,1776550235872,-500.0,9.396e-05,2]
[420811860,1776550235881,-2000.0,9.4e-05,2]
[420811861,1776550235890,-150.0,9.42e-05,2]
[420811862,1776550235899,-161.0,9.5e-05,2]
[420811863,1776550235909,-161.0,9.5e-05,2]
[420811864,1776550235918,-150.36,9.547e-05,2]
[420811865,1776550235927,-156.34,9.589e-05,2]
[420811866,1776550235937,-165.78,9.653e-05,2]
[420811867,1776550235946,-150.0,9.72e-05,2]
[420811868,1776550235955,-260.0,9.863e-05,2]
[420811869,1776550235965,-372.17,9.863e-05,2]
[420811870,1776550235975,-150.36,9.898e-05,2]
[420811871,1776550235984,-200.0,9.94e-05,2]
[420811872,1776550235993,-1536.04360649,9.94e-05,2]
[420811873,1776550236002,-194.72792766,9.94e-05,2]
[420811874,1776550236012,-823.0,9.973e-05,2]
[420811875,1776550236021,-3292.0,9.973e-05,2]
[420811876,1776550236031,-155.0,9.999e-05,2]
[420811877,1776550236040,-537.0,0.0001,5]
[420811878,1776550236050,-67122.13838187,0.0001,2]
[420811879,1776550236060,-895.67459001,0.0001,2]
[420811880,1776550236069,-2757.84966549,0.0001,2]
[420811881,1776550236079,-16198.45909822,0.0001,2]
[420811882,1776550236089,-349.01121396,0.0001,2]
[420811883,1776550236098,-33178.28279597,0.0001,2]
[420811884,1776550236108,-1108.97108578,0.0001,2]
[420811885,1776550236117,-2391.44845211,0.0001,2]
[420811886,1776550236126,-2652.14400333,0.0001,2]
[420811887,1776550236135,-165.25986547,0.0001,2]
[420811888,1776550236145,-198.86230135,0.0001,2]
[420811889,1776550236154,-189.84352624,0.0001,2]
[420811890,1776550236164,-195.20300125,0.0001,2]
[420811891,1776550236174,-153.62606034,0.0001,2]
[420811892,1776550236184,-2000.0,0.0001,2]
[420811893,1776550236193,-151.0,0.0001,2]
[420811894,1776550236202,-500.0,0.0001,2]
[420811895,1776550236211,-500.0,0.0001,2]
[420811896,1776550236220,-500.0,0.0001,2]
[420811897,1776550236230,-500.0,0.0001,2]
[420811898,1776550236239,-200.0,0.0001,2]
[420811899,1776550236248,-500.0,0.0001,2]
[420811900,1776550236258,-500.0,0.0001,2]
[420811901,1776550236267,-500.0,0.0001,2]
[420811902,1776550236276,-500.0,0.0001,2]
[420811903,1776550236286,-500.0,0.0001,2]
[420811904,1776550236295,-34.38805081,0.0001,2]
[420811905,1776550236310,-465.61194919,0.0001,2]
[420811906,1776550236320,-500.0,0.0001,2]
[420811907,1776550236330,-20.03449974,0.0001,3]
[420811908,1776550236341,-2368.72,0.0001,3]
[420811909,1776550236353,-1089.0,0.0001,3]
[420811910,1776550236364,-885.56582339,0.0001,3]
[420811911,1776550236375,-367.55852767,0.0001,3]
[420811912,1776550236387,-3969.1211492,0.0001,3]
[420811913,1776550236396,-500.0,0.0001,2]
[420811914,1776550236405,-151.0,0.0001,2]
[420811915,1776550236415,-151.0,0.0001,2]
[420811916,1776550236424,-115.30808556,0.0001,2]
[420811917,1776550236448,-35.69191444,0.0001,2]
[420811918,1776550236458,-500.0,0.0001,2]
[420811919,1776550236467,-151.0,0.0001,2]
[420811920,1776550236477,-500.0,0.0001,2]
[420811921,1776550236487,-151.0,0.0001,2]
[420811922,1776550236496,-500.0,0.0001,2]
[420811923,1776550236506,-151.0,0.0001,2]
[420811924,1776550236515,-500.0,0.0001,2]
[420811925,1776550236525,-151.0,0.0001,2]
[420811926,1776550236534,-500.0,0.0001,2]
[420811927,1776550236543,-90.92699052,0.0001,2]
[420811928,1776550236555,-60.07300948,0.0001,2]
[420811929,1776550236564,-294.92699053,0.0001,2]
[420811935,1776550237875,-205.07300947,0.0001,2]
[420811936,1776550237885,-151.0,0.0001,2]
[420811937,1776550237895,-246.12757349,0.0001,2]
[420811938,1776550237919,-253.87242651,0.0001,2]
[420811939,1776550237930,-151.0,0.0001,2]
[420811940,1776550237940,-241.63621634,0.0001,2]
[420811941,1776550237953,-258.36378366,0.0001,2]
[420811942,1776550237963,-500.0,0.0001,2]
[420811943,1776550237973,-151.0,0.0001,2]
[420811944,1776550237984,-500.0,0.0001,2]
[420811945,1776550237994,-500.0,0.0001,2]
[420811946,1776550238004,-151.0,0.0001,2]
[420811947,1776550238013,-151.77848186,0.0001,2]
[420811948,1776550238029,-348.22151814,0.0001,2]
[420811949,1776550238038,-1337.30371513,0.0001,2]
[420811950,1776550238048,-151.0,0.0001,2]
[420811951,1776550238058,-216.27229313,0.0001,2]
[420811952,1776550238068,-500.0,0.0001,2]
[420811954,1776550238077,-150.0,0.0001002,2]
[420811956,1776550238087,-433.0,0.00010036,2]
[420811958,1776550238096,-2000.0,0.000102,2]
[420811960,1776550238106,-1600.0,0.00010271,2]
[420811962,1776550238115,-2000.0,0.00010274,2]
[420811964,1776550238124,-156.34,0.00010274,2]
[420811966,1776550238134,-151.0,0.00010285,2]
[420811968,1776550238143,-151.0,0.00010285,2]
[420811970,1776550238152,-151.0,0.00010318,2]
[420811972,1776550238161,-151.0,0.00010371,2]
[420811974,1776550238171,-151.0,0.00010371,2]
[420811976,1776550238181,-2000.0,0.000104,2]
[420811978,1776550238191,-1278.057342,0.00010486,2]
[420811981,1776550238200,-10834.635782,0.00010486,2]
[420811983,1776550238209,-5711.933522,0.00010486,2]
[420811985,1776550238218,-1592.87721993,0.00010488,2]
[420811986,1776550238227,-200.0,0.00010488,2]
[420811989,1776550238237,-201.93286099,0.00010488,2]
[420811991,1776550238246,-200.0,0.00010548,2]
[420811993,1776550238255,-1386.78395259,0.00010548,2]
[420811994,1776550238264,-151.0,0.00010548,2]
[420811997,1776550238273,-789.57513704,0.000106,2]
[420811998,1776550238282,-2000.0,0.000106,2]
[420812000,1776550238292,-1038.37669509,0.0001069,2]
[420812001,1776550238301,-1093.91752428,0.00010699,3]
[420812003,1776550238311,-1093.91752428,0.00010699,3]
[420812005,1776550238320,-158346.79991973,0.000107,2]
[420812006,1776550238331,-1343.82,0.000107,2]
[420812007,1776550238358,-6936.65,0.000107,2]
[420812008,1776550238370,-41627.80494876,0.000107,2]
[420812010,1776550240183,-500.0,9.814e-05,2]
[420812011,1776550240192,-196496.0555,0.000107,2]
[420812012,1776550240265,-342.98602711,0.000107,2]
[420812051,1776550243218,-824.0,0.000107,2]
[420812052,1776550246199,-4172.95161949,0.000107,2]
[420812053,1776550246226,-36035.14752852,0.000107,2]
[420812054,1776550246237,-1037.32092717,0.000107,2]
[420812055,1776550246248,-1235.34021761,0.000107,2]
[420812056,1776550246264,-445.5,0.000107,2]
[420812061,1776550275951,500.0,0.0003287,120]
[420812062,1776550283483,500.0,0.0003287,120]
[420812063,1776550331851,183.0,0.00025872,120]
[420812064,1776550362058,500.0,0.00027949,120]
[420812066,1776550596099,226.69,0.00030411,120]
[420812067,1776550600228,500.0,0.0003287,120]
[420812068,1776550922665,500.0,0.0003287,120]
[420812069,1776550978054,500.0,0.00027967,120]
[420812070,1776551114239,7349.85,0.00032877,120]
[420812071,1776551197405,156.0,0.00032,120]
[420812072,1776551237028,161.0,0.000328,120]
[420812073,1776551243883,500.0,0.0003287,120]
[420812074,1776551350001,153.0,0.000323,120]
[420812075,1776551394623,200.0,0.00032,120]
[420812076,1776551410297,2005.0,0.00032876,120]
[420812077,1776551422561,171.0,0.000326,120]
[420812085,1776551431739,-300.0,7.427e-05,2]
[420812086,1776551431749,-1100.0,7.428e-05,2]
[420812087,1776551431758,-248.0,7.428e-05,2]
[420812088,1776551431767,-463.78030549,7.428e-05,2]
[420812089,1776551431855,-736.21969451,7.428e-05,2]
[420812090,1776551431864,-163.78030549,7.429e-05,2]
[420812091,1776551431875,-2419.58059293,7.429e-05,2]
[420812092,1776551431970,-2470.22010158,7.429e-05,2]
[420812093,1776551431979,-308.23,7.429e-05,2]
[420812094,1776551431988,-398.37635569,7.563e-05,2]
[420812095,1776551431998,-500.0,7.563e-05,2]
[420812096,1776551432006,-500.0,7.563e-05,2]
[420812097,1776551432015,-550.67277392,7.563e-05,2]
[420812098,1776551432025,-258.02,7.579e-05,2]
[420812099,1776551432034,-250.0,7.579e-05,2]
[420812100,1776551432043,-250.0,7.698e-05,2]
[420812101,1776551432052,-258.02,7.853e-05,2]
[420812102,1776551432061,-5400.0,8e-05,2]
[420812103,1776551432071,-500.0,8.111e-05,2]
[420812104,1776551432080,-258.02,8.127e-05,2]
[420812106,1776551432089,-255.21382962,8.17e-05,2]
[420812108,1776551432098,-150.0,8.17e-05,2]
[420812109,1776551432107,-4739.3415967,8.171e-05,2]
[420812110,1776551432115,-250.0,8.171e-05,2]
[420812111,1776551432124,-194.48806091,8.171e-05,2]
[420812112,1776551432134,-4984.288,8.171e-05,2]
[420812113,1776551432143,-313.41770673,8.171e-05,2]
[420812114,1776551432152,-3033.55993546,8.171e-05,2]
[420812115,1776551432162,-175.63,8.22e-05,2]
[420812116,1776551432172,-150.0,8.22e-05,2]
[420812117,1776551432181,-258.02,8.401e-05,2]
[420812118,1776551432190,-578.20924308,8.411e-05,2]
[420812119,1776551432199,-200.0,8.411e-05,2]
[420812120,1776551432208,-250.26080947,8.411e-05,2]
[420812121,1776551432218,-1377.42282659,8.411e-05,2]
[420812122,1776551432227,-695.39793187,8.411e-05,2]
[420812123,1776551432236,-151.0,8.411e-05,2]
[420812124,1776551432245,-174.61919141,8.411e-05,2]
[420812125,1776551432255,-151.0,8.466e-05,2]
[420812126,1776551432264,-150.0,8.52e-05,2]
[420812127,1776551432273,-271.06200786,8.606e-05,2]
[420812128,1776551432283,-19683.10757857,8.667e-05,2]
[420812129,1776551432292,-258.03,8.675e-05,2]
[420812130,1776551432302,-2000.0,8.691e-05,2]
[420812131,1776551432312,-150.0,8.771e-05,2]
[420812132,1776551432321,-200.0,8.959e-05,2]
[420812133,1776551432330,-1428.38747117,8.959e-05,2]
[420812134,1776551432339,-181.08010149,8.959e-05,2]
[420812135,1776551432348,-255.0,8.987e-05,2]
[420812136,1776551432737,-1000.0,9.167e-05,2]
[420812137,1776551432779,-500.0,9.407e-05,2]
[420812138,1776551432788,-200.0,9.507e-05,2]
[420812139,1776551432798,-1481.23780761,9.507e-05,2]
[420812140,1776551432807,-166.92730574,9.507e-05,2]
[420812141,1776551432815,-150.0,9.592e-05,2]
[420812142,1776551432824,-150.0,9.592e-05,2]
[420812143,1776551432834,-150.0,9.592e-05,2]
[420812144,1776551432843,-150.0,9.592e-05,2]
[420812145,1776551432852,-150.0,9.592e-05,2]
[420812146,1776551432861,-150.0,9.592e-05,2]
[420812147,1776551432870,-150.0,9.616e-05,2]
[420812148,1776551432879,-2000.0,9.777e-05,2]
[420812149,1776551432888,-433.0,9.885e-05,2]
[420812150,1776551432897,-1605.03570338,9.987e-05,2]
[420812151,1776551432906,-200.0,0.0001,2]
[420812152,1776551432915,-500.0,0.0001,2]
[420812153,1776551432924,-151.0,0.0001,2]
[420812154,1776551432933,-500.0,0.0001,2]
[420812155,1776551432942,-151.0,0.0001,2]
[420812156,1776551432951,-500.0,0.0001,2]
[420812157,1776551432960,-151.0,0.0001,2]
[420812158,1776551432969,-532.42560535,0.0001,2]
[420812159,1776551432978,-151.0,0.0001,2]
[420812160,1776551432988,-151.0,0.0001,2]
[420812161,1776551432997,-151.0,0.0001,2]
[420812162,1776551433006,-151.0,0.0001,2]
[420812163,1776551433016,-151.0,0.0001,2]
[420812164,1776551433025,-151.0,0.0001,2]
[420812165,1776551433035,-151.0,0.0001,2]
[420812166,1776551433043,-151.0,0.0001,2]
[420812167,1776551433052,-151.0,0.0001,2]
[420812168,1776551433061,-500.0,0.0001,2]
[420812169,1776551433070,-500.0,0.0001,2]
[420812170,1776551433079,-500.0,0.0001,2]
[420812171,1776551433088,-500.0,0.0001,2]
[420812172,1776551433097,-589.26251993,0.0001,2]
[420812173,1776551433106,-151.0,0.0001,2]
[420812174,1776551433116,-1337.30371513,0.0001,2]
[420812175,1776551433126,-301.45296488,0.00010055,2]
[420812176,1776551433135,-1536.04360649,0.00010055,2]
[420812177,1776551433144,-150.0,0.00010125,2]
[420812178,1776551433153,-150.0,0.00010151,2]
[420812179,1776551433162,-521.93775805,0.00010262,2]
[420812180,1776551433171,-1600.0,0.00010334,2]
[420812181,1776551433180,-150.26,0.00010367,2]
[420812182,1776551433190,-330.76591498,0.00010548,2]
[420812183,1776551433199,-1243.57659104,0.00010548,2]
[420812184,1776551433208,-350.0,0.00010564,2]
[420812185,1776551433217,-350.0,0.00010577,2]
[420812186,1776551433226,-2000.0,0.0001059,2]
[420812187,1776551433236,-2000.0,0.0001059,2]
[420812188,1776551433244,-2000.0,0.0001061,2]
[420812189,1776551433254,-4418.23533301,0.00010635,2]
[420812190,1776551433263,-2000.0,0.0001064,2]
[420812191,1776551433272,-150.0,0.00010658,2]
[420812192,1776551433281,-432.0,0.00010675,5]
[420812193,1776551433290,-9315.7379477,0.00010675,2]
[420812194,1776551433299,-171264.2631214,0.00010675,2]
[420812195,1776551433308,-150.0,0.00010685,2]
[420812196,1776551433318,-161.0,0.0001069,2]
[420812197,1776551433328,-293.91358825,0.00010694,4]
[420812198,1776551433336,-293.91358825,0.00010694,4]
[420812199,1776551433346,-16921.65066433,0.000107,2]
[420812200,1776551433355,-2000.0,0.000107,2]
[420812201,1776551433364,-2000.0,0.000107,2]
[420812202,1776551433373,-750.1,0.00010714,2]
[420812203,1776551433382,-350.0,0.00010778,2]
[420812204,1776551433391,-2000.0,0.00010864,2]
[420812205,1776551433400,-736.0,0.00010874,2]
[420812206,1776551433409,-10900.0,0.000109,3]
[420812207,1776551433419,-350.0,0.00010942,2]
[420812208,1776551433428,-500.0,0.00010958,2]
[420812209,1776551433438,-500.0,0.00010958,3]
[420812210,1776551433447,-500.0,0.00010958,4]
[420812211,1776551433458,-500.0,0.00010958,5]
[420812212,1776551433467,-500.0,0.00010958,6]
[420812213,1776551433476,-500.0,0.00010958,7]
[420812214,1776551433485,-500.0,0.00010958,8]
[420812215,1776551433494,-500.0,0.00010958,9]
[420812216,1776551433503,-500.0,0.00010958,10]
[420812217,1776551433512,-500.0,0.00010959,2]
[420812218,1776551433522,-156.34,0.00010959,2]
[420812219,1776551433531,-150.0,0.00010959,2]
[420812220,1776551433540,-150.0,0.00010989,2]
[420812221,1776551433550,-150.0,0.00010989,2]
[420812222,1776551433559,-155.0,0.00010999,2]
[420812223,1776551433569,-172.66770278,0.0001104,5]
[420812224,1776551433578,-3428.9831146,0.00011099,2]
[420812225,1776551433587,-3428.98311454,0.00011099,2]
[420812226,1776551433596,-599.60298507,0.0001115,2]
[420812227,1776551433605,-721.12765535,0.0001115,2]
[420812228,1776551433614,-350.0,0.00011162,2]
[420812229,1776551433624,-151.0,0.00011281,2]
[420812230,1776551433635,-151.0,0.00011281,2]
[420812231,1776551433644,-151.0,0.00011281,2]
[420812232,1776551433654,-225.821136,0.00011281,2]
[420812233,1776551433663,-225.821136,0.00011281,2]
[420812234,1776551433672,-225.821136,0.00011281,2]
[420812235,1776551433681,-225.821136,0.00011281,2]
[420812236,1776551433690,-311.477485,0.00011281,2]
[420812237,1776551433699,-311.477485,0.00011281,2]
[420812238,1776551433708,-311.477485,0.00011281,2]
[420812239,1776551433717,-311.477485,0.00011281,2]
[420812240,1776551433727,-151.0,0.00011281,2]
[420812241,1776551433736,-9999.99,0.00011281,2]
[420812242,1776551433746,-5397.85,0.00011281,2]
[420812243,1776551433755,-518.87,0.00011281,2]
[420812244,1776551433764,-4999.99,0.00011281,2]
[420812245,1776551433773,-999.99,0.00011281,2]
[420812246,1776551433783,-9999.99,0.00011281,2]
[420812247,1776551433792,-7973.56,0.00011281,2]
[420812248,1776551433801,-46711.69,0.00011281,2]
[420812249,1776551433810,-299.99,0.00011281,2]
[420812250,1776551433819,-11407.47,0.00011281,2]
[420812251,1776551433829,-9467.28,0.00011281,2]
[420812252,1776551433838,-9999.99,0.00011281,2]
[420812253,1776551433847,-150.99,0.00011281,2]
[420812254,1776551433856,-24999.99,0.00011281,2]
[420812255,1776551433866,-350.0,0.00011291,2]
[420812256,1776551433875,-168.54,0.00011301,2]
[420812257,1776551433884,-168.54,0.00011301,2]
[420812258,1776551433893,-350.0,0.00011329,2]
[420812259,1776551433903,-1247.42,0.00011507,2]
[420812260,1776551433912,-159.48,0.00011507,2]
[420812261,1776551433920,-589.51456451,0.00011558,2]
[420812262,1776551433931,-1600.0,0.00011626,2]
[420812263,1776551433940,-156.34,0.00011644,2]
[420812264,1776551433949,-350.0,0.00011707,2]
[420812265,1776551433958,-500.0,0.00011753,2]
[420812266,1776551433967,-7250.82026531,0.0001176,2]
[420812267,1776551433976,-512.12,0.000118,2]
[420812268,1776551433986,-160.0,0.00011883,2]
[420812269,1776551433995,-181.788655,0.00011902,2]
[420812270,1776551434005,-234.336939,0.00011902,2]
[420812271,1776551434015,-2000.0,0.0001195,2]
[420812272,1776551434024,-479.0,0.00011961,2]
[420812273,1776551434034,-155.0,0.00011999,2]
[420812274,1776551434043,-24162.31413305,0.00012,2]
[420812275,1776551434052,-526.3834247,0.00012045,2]
[420812276,1776551434061,-151.0,0.00012087,2]
[420812277,1776551434070,-151.0,0.00012087,2]
[420812278,1776551434080,-171264.2631214,0.00012145,2]
[420812279,1776551434089,-151.0,0.00012145,2]
[420812280,1776551434098,-151.0,0.00012145,2]
[420812281,1776551434107,-151.0,0.00012145,2]
[420812282,1776551434118,-225.821136,0.00012145,2]
[420812283,1776551434127,-225.821136,0.00012145,2]
[420812284,1776551434138,-225.821136,0.00012145,2]
[420812285,1776551434149,-225.821136,0.00012145,2]
[420812286,1776551434159,-311.477485,0.00012145,2]
[420812287,1776551434169,-311.477485,0.00012145,2]
[420812288,1776551434179,-311.477485,0.00012145,2]
[420812289,1776551434189,-311.477485,0.00012145,2]
[420812290,1776551434198,-151.0,0.00012145,2]
[420812291,1776551434208,-2078.6221001,0.00012204,2]
[420812292,1776551434218,-156.34,0.00012329,2]
[420812293,1776551434227,-463.8032821,0.00012546,2]
[420812294,1776551434236,-3428.98311454,0.0001258,2]
[420812295,1776551434245,-1600.0,0.00012918,2]
[420812296,1776551434255,-151.163,0.0001302,2]
[420812297,1776551434264,-1265.0,0.0001302,2]
[420812298,1776551434273,-926.0,0.0001302,2]
[420812299,1776551434283,-1219.0,0.0001302,2]
[420812300,1776551434292,-1458.96,0.0001302,2]
[420812301,1776551434302,-685.274,0.0001302,2]
[420812302,1776551434311,-2000.0,0.00013036,2]
[420812303,1776551434320,-3240.0,0.00013425,2]
[420812304,1776551434330,-171264.2631214,0.00013615,2]
[420812305,1776551434339,-151.0,0.00013615,2]
[420812306,1776551434349,-151.0,0.00013615,2]
[420812307,1776551434358,-151.0,0.00013615,2]
[420812308,1776551434367,-225.821136,0.00013615,2]
[420812309,1776551434376,-225.821136,0.00013615,2]
[420812310,1776551434386,-225.821136,0.00013615,2]
[420812311,1776551434395,-225.821136,0.00013615,2]
[420812312,1776551434404,-311.477485,0.00013615,2]
[420812313,1776551434413,-311.477485,0.00013615,2]
[420812314,1776551434422,-311.477485,0.00013615,2]
[420812315,1776551434431,-311.477485,0.00013615,2]
[420812316,1776551434440,-500.0,0.00013698,2]
[420812317,1776551434450,-500.0,0.00013698,2]
[420812318,1776551434459,-500.0,0.00013698,2]
[420812319,1776551434468,-500.0,0.00013698,2]
[420812320,1776551434477,-500.0,0.00013698,2]
[420812321,1776551434486,-500.0,0.00013698,2]
[420812322,1776551434495,-620.63567074,0.00013698,2]
[420812323,1776551434504,-500.0,0.00013698,2]
[420812324,1776551434514,-500.0,0.00013698,2]
[420812325,1776551434523,-500.0,0.00013698,2]
[420812326,1776551434532,-500.0,0.00013698,2]
[420812327,1776551434542,-500.0,0.00013698,2]
[420812328,1776551434551,-500.0,0.00013698,2]
[420812329,1776551434560,-500.0,0.00013698,2]
[420812330,1776551434570,-500.0,0.00013698,2]
[420812331,1776551434579,-500.0,0.00013698,2]
[420812332,1776551434589,-500.0,0.00013698,2]
[420812333,1776551434598,-500.0,0.00013698,2]
[420812334,1776551434607,-500.0,0.00013698,2]
[420812335,1776551434617,-500.0,0.00013698,2]
[420812336,1776551434626,-277.99131892,0.00013698,2]
[420812337,1776551434635,-500.0,0.00013698,2]
[420812338,1776551434645,-500.0,0.00013698,2]
[420812339,1776551434655,-500.0,0.00013698,2]
[420812340,1776551434664,-500.0,0.00013698,2]
[420812341,1776551434674,-500.0,0.00013698,2]
[420812342,1776551434683,-500.0,0.00013698,2]
[420812343,1776551434692,-500.0,0.00013698,2]
[420812344,1776551434701,-500.0,0.00013698,2]
[420812345,1776551434711,-500.0,0.00013698,2]